bitfinex/quotes_SOLUSD_20250922
["timestamp","ask_amount","ask_price","bid_price","bid_amount"]
[1758525381062,7.56695982,223.76,223.74,65.06]
[1758525381258,4.46687809,223.87,223.78,13.59559401]
[1758525381458,7.56695982,223.83,223.8,40.48559401]
[1758525381676,7.56695982,223.84,223.81,38.17]
[1758525381889,7.56695982,223.82,223.81,37.5]
[1758525382392,7.56695982,223.82,223.81,37.48]
[1758525382582,7.56695982,223.82,223.81,38.15]
[1758525384371,7.56695982,223.83,223.81,38.15]
[1758525384561,7.56695982,223.82,223.81,0.67]
[1758525384761,7.56695982,223.82,223.81,37.48]
[1758525385179,7.56695982,223.82,223.78,20.49773194]
[1758525385367,15.63630168,223.84,223.79,37.48]
[1758525385551,15.63630168,223.84,223.79,191.70773194]
[1758525385874,15.63630168,223.84,223.79,192.37773194]
[1758525386253,11.16869192,223.84,223.8,0.67]
[1758525386455,11.16869192,223.84,223.81,37.46]
[1758525386754,7.56695982,223.82,223.81,37.46]
[1758525388366,12.03483579,223.82,223.81,37.46]
[1758525388983,23.20452571,223.82,223.81,37.46]
[1758525389560,12.03483579,223.82,223.81,37.46]
[1758525389959,7.56695982,223.82,223.81,38.16]
[1758525390282,12.03483579,223.82,223.79,154.22773194]
[1758525390456,4.46787597,223.82,223.81,37.44]
[1758525390657,12.03483579,223.82,223.81,37.44]
[1758525390857,12.03483579,223.82,223.81,38.14]
[1758525391068,7.56695982,223.82,223.81,38.14]
[1758525391279,7.56695982,223.83,223.81,38.14]
[1758525391478,4.4673708,223.85,223.81,38.14]
[1758525391479,7.56695982,223.82,223.81,37.44]
[1758525391778,35.66647907,223.89,223.83,12.26077212]
[1758525392080,46.83267675,223.89,223.84,37.44]
[1758525392384,0.67,223.88,223.84,37.44]
[1758525392561,15.63407333,223.87,223.84,37.44]
[1758525392871,7.56695982,223.85,223.84,49.70077212]
[1758525393655,7.56695982,223.85,223.84,12.26077212]
[1758525393963,7.56695982,223.85,223.84,50.38077212]
[1758525394467,12.03423701,223.85,223.84,50.38077212]
[1758525395680,12.03423701,223.85,223.84,12.96077212]
[1758525395864,12.03423701,223.85,223.84,50.38077212]
[1758525396272,12.03423701,223.85,223.84,49.68077212]
[1758525396962,12.03423701,223.85,223.84,39.15077212]
[1758525397283,12.03423701,223.85,223.84,49.66077212]
[1758525397465,12.03423701,223.85,223.84,50.36077212]
[1758525398560,11.1659555,223.9,223.84,50.36077212]
[1758525398781,11.1659555,223.9,223.85,0.7]
[1758525398782,7.56695982,223.87,223.85,0.7]
[1758525398959,12.03303994,223.91,223.87,39.15077212]
[1758525399161,23.19824024,223.91,223.88,38.1]
[1758525399376,7.56695982,223.9,223.88,50.36077212]
[1758525399578,7.56695982,223.9,223.89,0.7]
[1758525400566,7.56695982,223.9,223.89,38.08]
[1758525401162,12.0332394,223.9,223.89,38.08]
[1758525403296,4.46568123,223.93,223.89,38.08]
[1758525403466,7.56695982,223.9,223.89,49.64077212]
[1758525403791,7.56695982,223.9,223.89,49.62077212]
[1758525403959,7.56695982,223.9,223.86,134.4]
[1758525404164,7.56695982,223.87,223.86,134.4]
[1758525404573,15.63477172,223.86,223.82,135.1]
[1758525404900,15.63477172,223.86,223.83,38.06]
[1758525405094,7.56695982,223.84,223.83,37.36]
[1758525405468,7.56695982,223.84,223.82,215.0]
[1758525405672,7.56695982,223.83,223.82,73.03304018]
[1758525405881,15.63477172,223.86,223.82,110.39304018]
[1758525406297,15.63477172,223.86,223.83,0.7]
[1758525406498,15.63477172,223.86,223.84,37.34]
[1758525406674,37.96527321,223.89,223.84,37.34]
[1758525406991,7.56695982,223.85,223.82,73.03304018]
[1758525407190,7.56695982,223.83,223.82,73.03304018]
[1758525407388,7.56695982,223.83,223.82,110.37304018]
[1758525408684,12.03463618,223.83,223.82,73.03304018]
[1758525408994,12.03463618,223.83,223.82,110.37304018]
[1758525409494,12.03463618,223.83,223.82,73.03304018]
[1758525409786,12.03463618,223.83,223.82,110.35304018]
[1758525410191,12.03463618,223.83,223.82,111.05304018]
[1758525410504,12.03463618,223.83,223.82,110.35304018]
[1758525411701,4.46767636,223.83,223.82,111.05304018]
[1758525411994,12.03463618,223.83,223.82,111.05304018]
[1758525412895,12.03463618,223.83,223.82,73.03304018]
[1758525413189,12.03463618,223.83,223.82,110.35304018]
[1758525413699,12.03463618,223.83,223.82,73.03304018]
[1758525413874,31.2,223.9,223.83,13.59559401]
[1758525414070,25.9581826,224.02,223.86,26.89]
[1758525414071,4.46548182,223.94,223.86,26.89]
[1758525414294,0.67,224.0,223.85,13.59559401]
[1758525414295,7.56695982,223.95,223.89,7.56695982]
[1758525414479,10.55127365,223.95,223.9,38.02]
[1758525414679,3.13666261,223.94,223.91,0.7]
[1758525414899,6.12128036,223.96,223.92,38.02]
[1758525415096,4.46528242,223.95,223.93,38.02]
[1758525415402,4.46528242,223.95,223.94,38.02]
[1758525415573,10.58607967,223.99,223.94,38.02]
[1758525415773,7.44936335,223.99,223.95,38.0]
[1758525415972,7.44936335,223.99,223.93,30.02666261]
[1758525415973,3.13666261,223.99,223.96,38.0]
[1758525416185,3.13666261,223.99,223.97,0.7]
[1758525416381,3.13666261,223.99,223.98,37.3]
[1758525416600,7.56197813,223.99,223.98,37.3]
[1758525417196,4.46411362,224.01,223.98,37.99]
[1758525417492,7.56197813,224.0,223.98,37.99]
[1758525417701,7.56197813,224.0,223.99,0.69]
[1758525418196,7.56197813,224.0,223.92,13.59559401]
[1758525418197,0.71,224.0,223.89,0.69]
[1758525418374,7.56197813,223.9,223.85,0.69]
[1758525418695,7.56197813,223.89,223.86,0.69]
[1758525418999,0.71,223.95,223.87,37.99]
[1758525419000,12.0286567,223.88,223.87,37.99]
[1758525419173,12.0286567,223.88,223.8,0.69]
[1758525419496,7.56197813,223.83,223.81,37.3]
[1758525419690,7.56197813,223.83,223.81,37.99]
[1758525420198,7.56197813,223.82,223.81,37.99]
[1758525421189,12.0298541,223.82,223.81,37.3]
[1758525421394,12.0298541,223.82,223.78,0.69]
[1758525421594,12.0298541,223.82,223.75,2.33402358]
[1758525421595,7.56197813,223.79,223.76,13.59559401]
[1758525421895,7.56197813,223.77,223.76,0.69]
[1758525422075,7.56197813,223.77,223.76,37.99]
[1758525423691,12.03085242,223.77,223.75,2.33402358]
[1758525423898,12.03085242,223.77,223.71,0.69]
[1758525423899,7.56197813,223.76,223.71,37.99]
[1758525424201,7.56197813,223.72,223.71,51.58559401]
[1758525424497,15.64106001,223.77,223.71,51.58559401]
[1758525424498,7.56197813,223.73,223.71,51.58559401]
[1758525424679,7.56197813,223.73,223.72,0.69]
[1758525425498,7.56197813,223.73,223.71,50.89559401]
[1758525425681,4.46949173,223.74,223.71,50.89559401]
[1758525425682,7.56197813,223.72,223.71,51.58559401]
[1758525426496,7.56197813,223.72,223.71,78.47559401]
[1758525426700,4.46948415,223.74,223.71,78.47559401]
[1758525426871,7.56197813,223.72,223.71,78.47559401]
[1758525427197,8.27197813,223.72,223.68,64.19]
[1758525427376,37.3,223.83,223.64,0.69]
[1758525427377,7.56197813,223.69,223.64,0.69]
[1758525427576,7.56197813,223.65,223.64,0.69]
[1758525427787,7.56197813,223.65,223.64,37.3]
[1758525428610,5.24323275,223.65,223.64,37.3]
[1758525428971,9.71450482,223.65,223.64,37.3]
[1758525430377,9.71450482,223.65,223.63,0.1]
[1758525430596,5.24323275,223.64,223.63,0.1]
[1758525431892,5.91323275,223.64,223.63,0.1]
[1758525432682,5.24323275,223.64,223.63,0.1]
[1758525433899,9.71470475,223.64,223.63,0.1]
[1758525434102,5.24323275,223.64,223.63,0.1]
[1758525435383,4.47129733,223.65,223.63,0.1]
[1758525435579,5.24323275,223.64,223.63,0.1]
[1758525439402,9.71470475,223.64,223.63,0.1]
[1758525440723,4.471472,223.64,223.63,0.1]
[1758525440922,9.71470475,223.64,223.63,0.1]
[1758525441288,5.24323275,223.64,223.63,0.1]
[1758525441513,9.71470475,223.64,223.63,0.1]
[1758525441899,5.24323275,223.64,223.63,0.8]
[1758525442199,11.17592498,223.7,223.63,118.72]
[1758525442506,5.24323275,223.68,223.64,0.7]
[1758525442708,5.24323275,223.71,223.65,45.72882676]
[1758525442907,5.24323275,223.71,223.66,0.7]
[1758525443108,5.24323275,223.71,223.67,37.3]
[1758525443412,5.24323275,223.71,223.68,0.7]
[1758525443613,5.24323275,223.71,223.69,0.7]
[1758525443817,9.71350543,223.7,223.68,80.6]
[1758525444124,5.24323275,223.69,223.68,80.6]
[1758525444608,5.24323275,223.69,223.68,81.3]
[1758525444818,5.24323275,223.72,223.68,81.3]
[1758525445111,5.24323275,223.73,223.69,0.7]
[1758525445292,5.24323275,223.73,223.7,0.7]
[1758525445487,5.24323275,223.73,223.71,38.0]
[1758525446413,9.7129511,223.73,223.71,38.0]
[1758525446893,5.24323275,223.73,223.71,38.0]
[1758525447092,5.24323275,223.73,223.72,0.71]
[1758525447304,5.24323275,223.75,223.72,0.71]
[1758525447509,5.24323275,223.76,223.73,0.71]
[1758525447712,5.24323275,223.76,223.74,37.3]
[1758525447919,5.24323275,223.76,223.74,38.01]
[1758525448095,5.24323275,223.75,223.71,81.31]
[1758525448295,5.24323275,223.73,223.72,37.3]
[1758525448527,5.24323275,223.73,223.72,38.01]
[1758525448924,5.24323275,223.74,223.72,38.01]
[1758525449098,5.24323275,223.74,223.73,0.71]
[1758525449606,5.24323275,223.74,223.73,37.3]
[1758525449800,5.24323275,223.74,223.71,80.6]
[1758525449996,5.24323275,223.72,223.71,80.6]
[1758525450806,4.46929735,223.75,223.71,80.6]
[1758525451008,4.46929735,223.75,223.72,37.28]
[1758525451211,5.24323275,223.75,223.72,118.59]
[1758525451401,5.24323275,223.74,223.72,118.59]
[1758525451996,5.24323275,223.73,223.72,80.6]
[1758525452202,5.24323275,223.73,223.72,117.88]
[1758525452524,31.2,223.79,223.72,117.88]
[1758525452525,5.24323275,223.74,223.72,118.59]
[1758525452729,5.24323275,223.74,223.73,37.99]
[1758525453127,9.71270624,223.74,223.72,80.6]
[1758525453310,4.46947349,223.74,223.73,37.28]
[1758525453847,36.38947349,223.74,223.72,80.6]
[1758525454133,0.72,223.73,223.72,80.6]
[1758525454313,0.72,223.73,223.67,117.88]
[1758525454508,5.24323275,223.68,223.67,117.88]
[1758525455514,5.24323275,223.68,223.67,118.59]
[1758525456005,9.71390513,223.68,223.67,117.88]
[1758525456443,9.71390513,223.68,223.67,80.6]
[1758525457443,10.43390513,223.68,223.67,80.6]
[1758525459331,5.24323275,223.68,223.67,81.31]
[1758525459544,5.24323275,223.69,223.67,81.31]
[1758525459715,5.24323275,223.69,223.68,37.97]
[1758525459911,5.24323275,223.69,223.68,118.57]
[1758525460343,4.46887429,223.77,223.68,118.57]
[1758525460547,5.24323275,223.71,223.68,117.86]
[1758525460845,5.24323275,223.71,223.69,0.71]
[1758525461018,5.24323275,223.72,223.7,37.26]
[1758525461218,5.24323275,223.71,223.7,37.26]
[1758525462944,9.71330561,223.71,223.7,37.26]
[1758525463119,4.46987237,223.73,223.7,37.26]
[1758525463324,5.24323275,223.71,223.7,37.26]
[1758525463533,5.24323275,223.71,223.7,37.97]
[1758525463734,4.46967326,223.73,223.7,37.97]
[1758525463935,9.71271437,223.74,223.71,0.71]
[1758525464123,9.71271437,223.74,223.72,37.97]
[1758525464319,5.24323275,223.74,223.73,37.26]
[1758525464523,4.46915592,223.76,223.73,118.57]
[1758525464524,5.24323275,223.76,223.73,118.57]
[1758525464830,9.71238591,223.76,223.74,0.71]
[1758525465038,4.46915316,223.76,223.75,37.26]
[1758525465224,9.71238591,223.76,223.75,37.26]
[1758525465427,9.71238591,223.76,223.75,117.86]
[1758525466637,9.71238591,223.76,223.75,145.46]
[1758525466940,31.2,223.81,223.75,118.57]
[1758525467239,5.24323275,223.77,223.75,118.57]
[1758525467439,11.17005555,223.82,223.75,118.57]
[1758525467440,4.46827524,223.8,223.76,0.71]
[1758525467642,4.46827524,223.8,223.77,37.24]
[1758525467841,4.46827524,223.8,223.77,37.95]
[1758525468327,4.46827524,223.8,223.77,118.55]
[1758525468527,4.46827524,223.8,223.77,81.31]
[1758525468734,5.24323275,223.78,223.77,80.6]
[1758525468931,9.71190734,223.78,223.77,80.6]
[1758525469127,9.71190734,223.78,223.77,117.84]
[1758525469332,9.71190734,223.78,223.77,80.6]
[1758525469646,31.2,223.75,223.72,80.6]
[1758525469962,31.2,223.75,223.68,134.4]
[1758525469963,5.24323275,223.73,223.68,37.24]
[1758525470146,5.24323275,223.69,223.68,37.24]
[1758525470923,4.47067238,223.68,223.67,80.6]
[1758525471119,9.71390513,223.68,223.67,117.82]
[1758525472650,9.71390513,223.68,223.67,80.6]
[1758525473151,9.71390513,223.68,223.67,117.82]
[1758525473354,9.71390513,223.68,223.67,80.6]
[1758525473930,9.71390513,223.68,223.63,80.7]
[1758525473931,21.6105861,223.68,223.63,80.7]
[1758525474137,16.36735335,223.68,223.64,37.22]
[1758525474343,9.71450482,223.65,223.64,37.22]
[1758525475252,9.71450482,223.65,223.63,37.32]
[1758525475432,5.24323275,223.64,223.63,37.32]
[1758525476442,9.71470475,223.64,223.63,0.1]
[1758525476840,40.91470475,223.64,223.63,80.7]
[1758525477654,5.24323275,223.64,223.63,118.57]
[1758525478149,27.58541678,223.8,223.63,118.57]
[1758525478150,35.67047252,223.69,223.63,118.57]
[1758525478337,5.24323275,223.64,223.63,118.57]
[1758525478541,9.71470475,223.64,223.63,118.57]
[1758525479752,5.24323275,223.64,223.63,118.57]
[1758525480763,5.24323275,223.65,223.63,118.57]
[1758525481060,46.84666438,223.69,223.64,0.67]
[1758525481262,46.84666438,223.69,223.65,37.87]
[1758525481435,4.47048306,223.69,223.65,37.2]
[1758525481763,4.47048306,223.69,223.65,37.87]
[1758525481963,15.64666438,223.69,223.65,37.87]
[1758525482345,5.24323275,223.66,223.65,37.87]
[1758525483164,9.71430491,223.66,223.65,37.87]
[1758525483660,9.71430491,223.66,223.65,80.6]
[1758525483864,9.71430491,223.66,223.65,117.8]
[1758525484041,9.71430491,223.66,223.65,80.6]
[1758525484237,9.71430491,223.66,223.65,81.27]
[1758525484541,9.71430491,223.66,223.65,80.6]
[1758525484835,10.41430491,223.66,223.65,80.6]
[1758525485237,9.71430491,223.66,223.65,80.6]
[1758525486042,15.65753766,223.66,223.65,80.6]
[1758525486634,7.18523676,223.66,223.65,20.46269173]
[1758525487646,6.48523676,223.66,223.65,20.46269173]
[1758525488634,9.71502309,223.66,223.65,20.46269173]
[1758525489546,31.2,223.64,223.63,80.7]
[1758525489752,36.44395093,223.64,223.63,80.7]
[1758525490450,4.47107216,223.66,223.63,81.37]
[1758525490755,7.58397868,223.65,223.64,37.83]
[1758525490940,4.46927374,223.75,223.64,118.43]
[1758525491143,7.58397868,223.68,223.65,0.67]
[1758525491347,7.58397868,223.68,223.66,37.16]
[1758525491549,7.58397868,223.68,223.67,0.67]
[1758525491748,12.05465106,223.68,223.67,0.67]
[1758525492656,12.05465106,223.68,223.66,80.6]
[1758525492851,4.47067238,223.68,223.67,37.16]
[1758525493055,12.05465106,223.68,223.67,0.69]
[1758525493440,7.58397868,223.68,223.67,0.69]
[1758525493847,12.05465106,223.68,223.67,0.69]
[1758525494051,12.05465106,223.68,223.67,37.85]
[1758525494856,12.05465106,223.68,223.67,0.69]
[1758525495057,12.05465106,223.68,223.67,37.14]
[1758525495456,12.05465106,223.68,223.67,118.43]
[1758525495866,7.58397868,223.68,223.67,118.43]
[1758525496169,7.58397868,223.69,223.67,118.43]
[1758525496371,7.58397868,223.69,223.68,0.69]
[1758525497150,4.46987305,223.72,223.68,0.69]
[1758525497378,31.2,223.73,223.69,37.83]
[1758525497674,7.58397868,223.7,223.69,118.43]
[1758525498060,7.58397868,223.7,223.69,80.6]
[1758525498574,7.58397868,223.7,223.69,117.74]
[1758525498763,7.58397868,223.7,223.69,80.6]
[1758525499069,7.58397868,223.7,223.69,117.74]
[1758525499272,12.05425136,223.7,223.69,117.74]
[1758525499578,31.2,223.67,223.66,80.6]
[1758525499778,31.2,223.67,223.63,0.1]
[1758525499779,39.48397868,223.67,223.63,80.7]
[1758525500061,7.58397868,223.64,223.63,80.7]
[1758525500746,7.58397868,223.64,223.63,81.39]
[1758525501363,12.05545068,223.64,223.63,80.7]
[1758525501678,31.2,223.61,223.58,0.1]
[1758525501851,7.58397868,223.59,223.58,0.1]
[1758525502776,31.2,223.61,223.58,0.1]
[1758525502979,7.58397868,223.59,223.58,0.1]
[1758525503476,12.05645061,223.59,223.58,0.1]
[1758525506550,12.75645061,223.59,223.58,0.1]
[1758525506754,12.75645061,223.59,223.58,1e-08]
[1758525507054,31.2,223.56,223.53,0.1]
[1758525507374,38.78397868,223.54,223.53,0.1]
[1758525507767,43.25745098,223.54,223.53,0.1]
[1758525507966,35.6734723,223.54,223.53,0.1]
[1758525508356,43.25745098,223.54,223.53,0.1]
[1758525509365,43.97745098,223.54,223.53,0.1]
[1758525509770,81.05745098,223.54,223.53,0.1]
[1758525510475,81.07745098,223.54,223.53,1e-08]
[1758525510667,76.6437606,223.54,223.53,1e-08]
[1758525511464,39.5437606,223.54,223.53,1e-08]
[1758525511672,75.9037606,223.54,223.53,1e-08]
[1758525512370,39.5437606,223.54,223.53,1e-08]
[1758525512575,76.6237606,223.54,223.53,1e-08]
[1758525513300,101.40303538,223.54,223.49,1e-08]
[1758525513590,3.1502883,223.5,223.49,1e-08]
[1758525513781,31.2,223.43,223.42,80.7]
[1758525513954,31.2,223.43,223.42,0.78]
[1758525514382,3.1502883,223.44,223.42,0.78]
[1758525514679,23.1502883,223.56,223.42,0.78]
[1758525514680,31.2,223.48,223.42,0.78]
[1758525514858,3.1502883,223.47,223.42,0.78]
[1758525515258,3.1502883,223.49,223.43,37.08]
[1758525515591,3.1502883,223.47,223.44,0.68]
[1758525515881,4.47427293,223.5,223.44,81.28]
[1758525516082,3.1502883,223.47,223.45,0.68]
[1758525518088,31.2,223.52,223.45,0.68]
[1758525518384,3.1502883,223.47,223.45,0.68]
[1758525519082,3.1502883,223.47,223.44,80.6]
[1758525519390,46.8585893,223.52,223.44,80.6]
[1758525519391,46.8585893,223.52,223.46,0.68]
[1758525519691,46.8585893,223.52,223.46,81.28]
[1758525520687,7.62516188,223.47,223.46,81.28]
[1758525521474,7.62516188,223.47,223.42,0.1]
[1758525521475,31.2,223.44,223.42,0.1]
[1758525521682,3.1502883,223.43,223.42,0.78]
[1758525521982,3.1502883,223.43,223.42,0.1]
[1758525522181,3.1502883,223.43,223.42,0.78]
[1758525522886,3.1502883,223.46,223.42,0.78]
[1758525523694,3.1502883,223.44,223.43,0.68]
[1758525524287,3.1502883,223.44,223.42,0.1]
[1758525524680,4.4756747,223.43,223.42,0.1]
[1758525526976,7.62577579,223.44,223.42,0.1]
[1758525527395,34.3502883,223.43,223.42,0.1]
[1758525528087,34.3502883,223.43,223.42,80.7]
[1758525528492,38.825963,223.43,223.42,80.7]
[1758525528671,35.6756747,223.43,223.42,80.7]
[1758525528871,38.825963,223.43,223.42,80.7]
[1758525529582,34.3502883,223.43,223.42,80.7]
[1758525529976,38.825963,223.43,223.42,81.38]
[1758525530298,3.1502883,223.43,223.42,81.38]
[1758525530488,7.625963,223.43,223.42,80.7]
[1758525530800,38.825963,223.43,223.42,81.38]
[1758525531892,38.825963,223.43,223.42,80.7]
[1758525533185,35.6756747,223.43,223.42,80.7]
[1758525533494,34.3502883,223.43,223.42,81.38]
[1758525533691,38.825963,223.43,223.42,81.38]
[1758525534195,38.825963,223.43,223.42,80.7]
[1758525535498,35.6756747,223.43,223.42,80.7]
[1758525535793,38.825963,223.43,223.42,80.7]
[1758525538199,3.1502883,223.43,223.42,81.4]
[1758525538383,3.1502883,223.43,223.42,118.38]
[1758525538888,31.2,223.44,223.42,118.38]
[1758525539085,3.1502883,223.45,223.43,0.7]
[1758525539408,37.64,223.51,223.43,0.7]
[1758525539409,0.66,223.51,223.44,37.68]
[1758525539700,3.1502883,223.45,223.43,215.0]
[1758525539889,4.4754744,223.44,223.43,215.7]
[1758525540085,4.4754744,223.44,223.43,252.68]
[1758525541190,4.4754744,223.44,223.43,251.98]
[1758525541700,4.4754744,223.44,223.43,80.6]
[1758525541701,5.1354744,223.44,223.43,80.6]
[1758525541910,5.1354744,223.44,223.42,0.1]
[1758525542118,3.8102883,223.43,223.42,0.1]
[1758525543196,39.485963,223.43,223.42,0.1]
[1758525544300,36.3356747,223.43,223.42,0.1]
[1758525544505,39.485963,223.43,223.42,0.1]
[1758525545303,56.04720916,223.43,223.42,1e-08]
[1758525545782,93.00720916,223.43,223.42,1e-08]
[1758525545984,96.5287433,223.43,223.42,1e-08]
[1758525546693,130.09630359,223.43,223.37,80.6]
[1758525546895,3.1502883,223.38,223.37,80.6]
[1758525547287,7.62696481,223.38,223.37,80.6]
[1758525547884,31.2,223.35,223.33,80.6]
[1758525548093,3.1502883,223.36,223.33,80.6]
[1758525548303,3.1502883,223.34,223.33,80.6]
[1758525549296,7.62776658,223.34,223.33,80.6]
[1758525550712,6.49676012,223.34,223.33,80.6]
[1758525551712,6.49676012,223.34,223.31,37.64]
[1758525551713,6.49676012,223.34,223.31,0.7]
[1758525551892,31.2,223.31,223.28,4.25215488]
[1758525552098,2.01928184,223.29,223.28,4.25215488]
[1758525552607,31.2,223.31,223.28,4.25215488]
[1758525552785,2.01928184,223.29,223.28,4.25215488]
[1758525553320,31.2,223.31,223.28,4.25215488]
[1758525553619,6.49776273,223.29,223.28,4.25215488]
[1758525554420,15.67468313,223.29,223.19,0.1]
[1758525554592,15.67468313,223.29,223.21,36.92]
[1758525554593,2.01928184,223.23,223.21,36.92]
[1758525554798,2.01928184,223.23,223.22,0.67]
[1758525555802,37.63,223.31,223.22,0.67]
[1758525556003,2.01928184,223.23,223.22,0.67]
[1758525556202,31.2,223.27,223.22,0.67]
[1758525556519,2.01928184,223.23,223.22,0.67]
[1758525556813,2.01928184,223.23,223.19,37.02]
[1758525556990,2.01928184,223.26,223.19,39.03928184]
[1758525557312,2.01928184,223.26,223.2,0.67]
[1758525557721,2.01928184,223.34,223.25,2.01928184]
[1758525558009,13.72027103,223.47,223.22,31.36988531]
[1758525558010,13.46771116,223.37,223.31,15.61487585]
[1758525558210,13.46771116,223.37,223.32,39.58928184]
[1758525558397,2.01928184,223.39,223.33,0.67]
[1758525558601,2.01928184,223.38,223.33,0.67]
[1758525558803,2.01928184,223.37,223.34,36.9]
[1758525559013,2.01928184,223.37,223.35,0.67]
[1758525559219,2.01928184,223.37,223.36,0.67]
[1758525559885,6.49616977,223.37,223.33,0.67]
[1758525560090,2.01928184,223.35,223.34,0.67]
[1758525560302,33.21928184,223.35,223.34,0.67]
[1758525560508,31.2,223.35,223.34,0.67]
[1758525560706,33.21928184,223.35,223.34,0.67]
[1758525561412,33.21928184,223.35,223.33,36.9]
[1758525561606,2.01928184,223.34,223.33,37.57]
[1758525561793,6.49676012,223.34,223.33,0.67]
[1758525561999,31.2,223.32,223.31,36.9]
[1758525562188,31.2,223.32,223.31,37.57]
[1758525562189,33.21928184,223.32,223.31,37.57]
[1758525563696,31.2,223.33,223.31,118.17]
[1758525563904,33.21928184,223.33,223.32,0.67]
[1758525564598,33.21928184,223.33,223.31,36.9]
[1758525564599,13.46771117,223.36,223.3,36.88]
[1758525564799,33.21854251,223.32,223.31,0.67]
[1758525565411,33.21854251,223.32,223.3,36.88]
[1758525565616,33.21854251,223.32,223.3,37.55]
[1758525565617,2.01854251,223.31,223.3,37.55]
[1758525566017,31.2,223.28,223.26,80.6]
[1758525566510,33.21854251,223.28,223.27,37.55]
[1758525566711,2.01854251,223.3,223.27,0.67]
[1758525566899,31.2,223.32,223.27,0.67]
[1758525566900,2.01854251,223.31,223.28,36.88]
[1758525567098,2.01854251,223.3,223.28,37.53]
[1758525567327,2.01854251,223.29,223.28,37.53]
[1758525567915,31.2,223.29,223.28,37.53]
[1758525568112,33.21854251,223.29,223.28,0.65]
[1758525568301,33.21854251,223.29,223.26,118.11]
[1758525568505,2.01854251,223.28,223.26,80.6]
[1758525568710,6.49706746,223.29,223.26,117.46]
[1758525568902,2.01854251,223.29,223.27,0.65]
[1758525569120,2.01854251,223.29,223.27,80.6]
[1758525569121,4.47850494,223.29,223.27,80.6]
[1758525569304,33.93854251,223.28,223.27,80.6]
[1758525569508,44.41396275,223.28,223.27,80.6]
[1758525569920,48.89264422,223.28,223.27,80.6]
[1758525570101,48.89264422,223.28,223.25,80.6]
[1758525570307,0.72,223.27,223.25,80.6]
[1758525570513,2.01854251,223.26,223.25,80.6]
[1758525571722,42.39542024,223.28,223.25,81.25]
[1758525571905,2.01854251,223.27,223.25,80.6]
[1758525572302,2.01854251,223.26,223.25,80.6]
[1758525572506,2.01854251,223.26,223.25,81.25]
[1758525572724,46.87423086,223.28,223.25,81.25]
[1758525572908,2.01854251,223.27,223.25,81.25]
[1758525573109,2.01854251,223.26,223.25,80.6]
[1758525573321,2.01854251,223.26,223.25,117.44]
[1758525573526,2.01854251,223.27,223.25,117.44]
[1758525573721,2.01854251,223.27,223.26,0.65]
[1758525574033,37.69735313,223.28,223.26,0.65]
[1758525574725,33.21854251,223.27,223.26,0.65]
[1758525575234,37.69742458,223.27,223.26,0.65]
[1758525575703,17.45596112,223.87,223.26,0.65]
[1758525575704,31.2,223.32,223.26,0.65]
[1758525575902,31.2,223.32,223.27,36.84]
[1758525576123,31.2,223.28,223.27,36.84]
[1758525576824,2.01854251,223.31,223.27,118.09]
[1758525577002,2.01854251,223.31,223.28,0.65]
[1758525577315,33.21854251,223.3,223.29,36.84]
[1758525577732,33.21854251,223.3,223.29,37.49]
[1758525578026,31.2,223.3,223.29,37.49]
[1758525578529,3.73617457,223.51,223.32,13.59559401]
[1758525578709,4.98700831,223.56,223.38,60.48559401]
[1758525578909,2.01854251,223.51,223.4,40.48559401]
[1758525579124,2.01854251,223.49,223.42,44.96136272]
[1758525579326,0.72,223.51,223.42,44.96136272]